fUST/lending_fUST_20241014
["ID","MTS","AMOUNT","RATE_DAILY","PERIOD"]
[340248437,1728917440306,-500.0,0.00041095,30]
[340248438,1728917440316,-336.003755,0.00041095,14]
[340248439,1728917440326,-336.003755,0.00041095,14]
[340248440,1728917440335,-336.003755,0.00041095,14]
[340248441,1728917440345,-500.0,0.00041095,30]
[340248442,1728917440355,-500.0,0.00041095,30]
[340248443,1728917440364,-336.003755,0.00041095,14]
[340248444,1728917440374,-500.0,0.00041095,30]
[340248445,1728917440383,-336.003755,0.00041095,14]
[340248446,1728917440393,-336.003755,0.00041095,14]
[340248447,1728917440405,-500.0,0.00041095,30]
[340248448,1728917440414,-151.0,0.00041095,14]
[340248449,1728917440423,-151.0,0.00041095,14]
[340248450,1728917440433,-500.0,0.00041095,30]
[340248451,1728917440442,-151.0,0.00041095,14]
[340248452,1728917440452,-1515.94,0.00041095,30]
[340248453,1728917440461,-151.0,0.00041095,14]
[340248454,1728917440470,-151.0,0.00041095,14]
[340248455,1728917440480,-151.0,0.00041095,14]
[340248456,1728917440490,-500.0,0.00041095,30]
[340248457,1728917440500,-500.0,0.00041095,30]
[340248458,1728917440510,-500.0,0.00041095,30]
[340248459,1728917440519,-151.0,0.00041095,14]
[340248460,1728917440529,-151.0,0.00041095,14]
[340248461,1728917440538,-260.185844,0.00041095,14]
[340248462,1728917440547,-543.48927493,0.00041095,30]
[340248463,1728917440558,-533.30501241,0.00041095,30]
[340248464,1728917440567,-500.0,0.00041095,30]
[340248465,1728917440578,-500.0,0.00041095,30]
[340248466,1728917440590,-500.0,0.00041095,30]
[340248467,1728917440601,-500.0,0.00041095,30]
[340248468,1728917440611,-500.0,0.00041095,30]
[340248469,1728917440620,-680.16,0.00041095,30]
[340248470,1728917440631,-500.0,0.00041095,30]
[340248471,1728917440641,-500.0,0.00041095,30]
[340248472,1728917440652,-2000.0,0.00041095,30]
[340248473,1728917440662,-151.0,0.00041095,14]
[340248475,1728917440671,-151.0,0.00041095,14]
[340248476,1728917440680,-151.0,0.00041095,14]
[340248478,1728917440690,-226.251048,0.00041095,14]
[340248480,1728917440699,-151.0,0.00041095,14]
[340248481,1728917440709,-151.0,0.00041095,14]
[340248482,1728917440718,-151.0,0.00041095,14]
[340248483,1728917440784,-151.0,0.00041095,14]
[340248484,1728917440793,-151.0,0.00041095,14]
[340248485,1728917440803,-151.0,0.00041095,14]
[340248486,1728917440812,-500.0,0.00041095,30]
[340248487,1728917440821,-500.0,0.00041095,30]
[340248488,1728917440831,-500.0,0.00041095,30]
[340248489,1728917440840,-151.0,0.00041095,14]
[340248490,1728917440849,-151.0,0.00041095,14]
[340248491,1728917440858,-151.0,0.00041095,14]
[340248492,1728917440867,-151.0,0.00041095,14]
[340248493,1728917440876,-151.0,0.00041095,14]
[340248494,1728917440886,-237.05289528,0.00041095,14]
[340248495,1728917440895,-247.59455091,0.00041095,30]
[340248496,1728917440906,-500.0,0.00041095,30]
[340248497,1728917440916,-500.0,0.00041095,30]
[340248498,1728917440925,-500.0,0.00041095,30]
[340248499,1728917440934,-556.3596051,0.00041095,30]
[340248500,1728917440945,-526.11767069,0.00041095,30]
[340248501,1728917440956,-500.0,0.00041095,30]
[340248502,1728917440967,-239.48680135,0.00041095,30]
[340248503,1728917440977,-512.5432248,0.00041095,30]
[340248504,1728917440987,-500.37801602,0.00041095,30]
[340248505,1728917440996,-500.0,0.00041095,30]
[340248506,1728917441006,-731.24,0.00041095,30]
[340248507,1728917441015,-185.708403,0.00041095,14]
[340248508,1728917441024,-185.708403,0.00041095,14]
[340248509,1728917441034,-500.0,0.00041095,30]
[340248510,1728917441043,-185.708403,0.00041095,14]
[340248511,1728917441052,-185.708403,0.00041095,14]
[340248512,1728917441061,-185.708403,0.00041095,14]
[340248513,1728917441072,-185.708403,0.00041095,14]
[340248514,1728917441082,-500.0,0.00041095,30]
[340248515,1728917441092,-185.708403,0.00041095,14]
[340248516,1728917441102,-185.708403,0.00041095,14]
[340248517,1728917441112,-151.0,0.00041095,14]
[340248518,1728917441121,-500.0,0.00041095,30]
[340248519,1728917441131,-185.708403,0.00041095,14]
[340248520,1728917441140,-185.708403,0.00041095,14]
[340248521,1728917441152,-185.708403,0.00041095,14]
[340248522,1728917441163,-185.708403,0.00041095,14]
[340248523,1728917441172,-500.0,0.00041095,30]
[340248524,1728917441181,-540.32697502,0.00041095,30]
[340248525,1728917441190,-500.0,0.00041095,30]
[340248526,1728917441200,-500.0,0.00041095,30]
[340248527,1728917441209,-48.60152092,0.00041095,30]
[340248528,1728917441357,-490.57604942,0.00041095,30]
[340248529,1728917441367,-500.0,0.00041095,30]
[340248530,1728917441377,-623.86371495,0.00041095,30]
[340248531,1728917441386,-500.0,0.00041095,30]
[340248532,1728917441395,-500.0,0.00041095,30]
[340248533,1728917441407,-536.43375514,0.00041095,30]
[340248534,1728917441416,-500.0,0.00041095,30]
[340248535,1728917441425,-500.0,0.00041095,30]
[340248536,1728917441435,-500.0,0.00041095,30]
[340248537,1728917441444,-560.98624792,0.00041095,30]
[340248538,1728917441454,-500.0,0.00041095,30]
[340248539,1728917441464,-500.0,0.00041095,30]
[340248540,1728917441474,-151.0,0.00041095,14]
[340248541,1728917441483,-579.92786258,0.00041095,30]
[340248542,1728917441494,-500.0,0.00041095,30]
[340248543,1728917441504,-500.0,0.00041095,30]
[340248544,1728917441513,-206.142845,0.00041095,14]
[340248545,1728917441522,-206.142845,0.00041095,14]
[340248546,1728917441532,-206.142845,0.00041095,14]
[340248547,1728917441542,-500.0,0.00041095,30]
[340248548,1728917441552,-206.142845,0.00041095,14]
[340248549,1728917441562,-206.142845,0.00041095,14]
[340248550,1728917441572,-206.142845,0.00041095,14]
[340248551,1728917441581,-500.0,0.00041095,30]
[340248552,1728917441654,-500.0,0.00041095,30]
[340248553,1728917441665,-206.142845,0.00041095,14]
[340248554,1728917441674,-206.142845,0.00041095,14]
[340248555,1728917441684,-500.0,0.00041095,30]
[340248556,1728917441694,-580.61530205,0.00041095,30]
[340248557,1728917441703,-206.142845,0.00041095,14]
[340248558,1728917441713,-206.142845,0.00041095,14]
[340248559,1728917441722,-387.75429428,0.00041095,30]
[340248560,1728917441731,-635.47,0.00041095,30]
[340248561,1728917441741,-500.0,0.00041095,30]
[340248562,1728917441752,-206.142845,0.00041095,14]
[340248563,1728917441763,-206.142845,0.00041095,14]
[340248564,1728917441774,-500.0,0.00041095,30]
[340248565,1728917441784,-175.32828766,0.00041095,30]
[340248566,1728917441794,-511.23211429,0.00041095,30]
[340248567,1728917441804,-500.0,0.00041095,30]
[340248568,1728917441818,-500.0,0.00041095,30]
[340248569,1728917441828,-517.30389057,0.00041095,30]
[340248570,1728917441839,-500.0,0.00041095,30]
[340248571,1728917441848,-454.07283401,0.00041095,30]
[340248572,1728917441858,-500.0,0.00041095,30]
[340248573,1728917441868,-500.0,0.00041095,30]
[340248574,1728917441878,-500.0,0.00041095,30]
[340248575,1728917441887,-500.0,0.00041095,30]
[340248576,1728917441897,-500.0,0.00041095,30]
[340248577,1728917441908,-500.0,0.00041095,30]
[340248578,1728917441919,-500.0,0.00041095,30]
[340248579,1728917441930,-629.78105825,0.00041095,30]
[340248580,1728917441941,-202.38273944,0.00041095,30]
[340248581,1728917441951,-535.7200983,0.00041095,30]
[340248582,1728917441962,-493.88277971,0.00041095,30]
[340248583,1728917441973,-500.0,0.00041095,30]
[340248584,1728917441985,-500.0,0.00041095,30]
[340248585,1728917441995,-536.0347567,0.00041095,30]
[340248586,1728917442005,-500.0,0.00041095,30]
[340248587,1728917442015,-500.0,0.00041095,30]
[340248588,1728917442025,-500.0,0.00041095,30]
[340248589,1728917442035,-500.0,0.00041095,30]
[340248590,1728917442045,-528.59951097,0.00041095,30]
[340248591,1728917442055,-500.0,0.00041095,30]
[340248592,1728917442065,-534.46,0.00041095,30]
[340248593,1728917442075,-528.15592602,0.00041095,30]
[340248594,1728917442085,-531.6662094,0.00041095,30]
[340248595,1728917442096,-500.0,0.00041095,30]
[340248596,1728917442106,-556.97,0.00041095,30]
[340248597,1728917442117,-500.0,0.00041095,30]
[340248598,1728917442127,-275.97422608,0.00041095,30]
[340248599,1728917442137,-500.0,0.00041095,30]
[340248600,1728917442147,-500.0,0.00041095,30]
[340248601,1728917442161,-500.0,0.00041095,30]
[340248602,1728917442172,-500.0,0.00041095,30]
[340248603,1728917442182,-500.0,0.00041095,30]
[340248604,1728917442192,-500.0,0.00041095,30]
[340248605,1728917442202,-500.0,0.00041095,30]
[340248606,1728917442212,-766.55,0.00041095,30]
[340248607,1728917442222,-553.72233356,0.00041095,30]
[340248608,1728917442231,-568.88223193,0.00041095,30]
[340248609,1728917442241,-500.0,0.00041095,30]
[340248610,1728917442251,-500.0,0.00041095,30]
[340248611,1728917442260,-500.0,0.00041095,30]
[340248612,1728917442270,-546.69966168,0.00041095,30]
[340248613,1728917442280,-500.0,0.00041095,30]
[340248614,1728917442289,-500.0,0.00041095,30]
[340248615,1728917442299,-500.0,0.00041095,30]
[340248616,1728917442308,-500.0,0.00041095,30]
[340248617,1728917442318,-576.18,0.00041095,30]
[340248618,1728917442328,-443.018943,0.00041095,14]
[340248619,1728917442338,-443.018943,0.00041095,14]
[340248620,1728917442347,-500.0,0.00041095,30]
[340248621,1728917442357,-443.018943,0.00041095,14]
[340248622,1728917442366,-443.018943,0.00041095,14]
[340248623,1728917442375,-443.018943,0.00041095,14]
[340248624,1728917442385,-530.09081634,0.00041095,30]
[340248625,1728917442395,-443.018943,0.00041095,14]
[340248626,1728917442409,-151.0,0.00041095,14]
[340248627,1728917442419,-151.0,0.00041095,14]
[340248628,1728917442428,-500.0,0.00041095,30]
[340248629,1728917442437,-151.0,0.00041095,14]
[340248630,1728917442446,-151.0,0.00041095,14]
[340248631,1728917442457,-151.0,0.00041095,14]
[340248632,1728917442466,-151.0,0.00041095,14]
[340248633,1728917442475,-443.018943,0.00041095,14]
[340248634,1728917442485,-443.018943,0.00041095,14]
[340248635,1728917442494,-443.018943,0.00041095,14]
[340248636,1728917442504,-500.0,0.00041095,30]
[340248637,1728917442513,-443.018943,0.00041095,14]
[340248638,1728917442522,-443.018943,0.00041095,14]
[340248639,1728917442531,-443.018945,0.00041095,14]
[340248640,1728917442541,-151.0,0.00041095,14]
[340248641,1728917442551,-151.0,0.00041095,14]
[340248642,1728917442560,-500.0,0.00041095,30]
[340248643,1728917442570,-151.0,0.00041095,14]
[340248644,1728917442631,-151.0,0.00041095,14]
[340248645,1728917442642,-611.35,0.00041095,30]
[340248646,1728917442652,-151.0,0.00041095,14]
[340248647,1728917442662,-151.0,0.00041095,14]
[340248648,1728917442671,-500.0,0.00041095,30]
[340248649,1728917442681,-500.0,0.00041095,30]
[340248650,1728917442691,-500.0,0.00041095,30]
[340248651,1728917442701,-435.60919593,0.00041095,2]
[340248652,1728917442710,-500.0,0.00041095,30]
[340248653,1728917442720,-212.76256606,0.00041095,30]
[340248654,1728917442730,-500.0,0.00041095,30]
[340248655,1728917442739,-500.0,0.00041095,30]
[340248656,1728917442749,-500.0,0.00041095,30]
[340248657,1728917442758,-500.0,0.00041095,30]
[340248658,1728917442768,-500.0,0.00041095,30]
[340248659,1728917442777,-500.0,0.00041095,30]
[340248660,1728917442787,-500.0,0.00041095,30]
[340248661,1728917442796,-500.0,0.00041095,30]
[340248662,1728917442806,-188.28412819,0.00041095,30]
[340248663,1728917442816,-500.0,0.00041095,30]
[340248664,1728917442826,-500.0,0.00041095,30]
[340248665,1728917442836,-500.0,0.00041095,2]
[340248666,1728917442846,-500.0,0.00041095,30]
[340248667,1728917442856,-500.0,0.00041095,30]
[340248668,1728917442866,-500.0,0.00041095,30]
[340248669,1728917442876,-519.63305094,0.00041095,30]
[340248670,1728917442885,-500.0,0.00041095,30]
[340248671,1728917442895,-500.0,0.00041095,30]
[340248672,1728917442905,-516.80912681,0.00041095,30]
[340248673,1728917442915,-525.86551943,0.00041095,30]
[340248674,1728917442925,-151.0,0.00041096,2]
[340248675,1728917442936,-151.0,0.00041096,2]
[340248676,1728917442945,-151.0,0.00041096,2]
[340248677,1728917442955,-151.0,0.00041096,2]
[340248678,1728917442965,-151.0,0.00041096,2]
[340248679,1728917442975,-151.0,0.00041096,2]
[340248680,1728917442984,-341.8,0.000411,30]
[340248681,1728917442994,-906.6,0.000411,30]
[340248682,1728917443004,-1117.74,0.000411,30]
[340248683,1728917443013,-351.61,0.000411,30]
[340248684,1728917443024,-185.708403,0.000411,120]
[340248685,1728917443034,-185.708403,0.000411,120]
[340248686,1728917443051,-206.142845,0.000411,120]
[340248687,1728917443073,-206.142845,0.000411,120]
[340248688,1728917443090,-156.1,0.0004114,31]
[340248689,1728917443111,-1000.0,0.00041185,30]
[340248692,1728917443133,-153.0,0.00041205,30]
[340248693,1728917443152,-153.0,0.00041205,30]
[340248694,1728917443172,-153.0,0.00041205,30]
[340248695,1728917443187,-153.0,0.00041205,30]
[340248696,1728917443204,-153.0,0.00041205,30]
[340248697,1728917443227,-161.5318101,0.00041205,30]
[340248698,1728917443246,-175.388486,0.00041245,120]
[340248699,1728917443260,-151.0,0.00041245,5]
[340248700,1728917443282,-151.0,0.00041245,120]
[340248701,1728917443298,-218.449298,0.00041246,120]
[340248702,1728917443316,-201.922875,0.00041246,120]
[340248703,1728917443331,-201.922875,0.00041246,120]
[340248704,1728917443347,-151.0,0.00041246,120]
[340248705,1728917443363,-204.497135,0.00041246,120]
[340248706,1728917443378,-204.497135,0.00041246,120]
[340248707,1728917443393,-151.0,0.00041246,120]
[340248708,1728917443411,-959.640086,0.00041246,120]
[340248709,1728917443425,-959.640086,0.00041246,120]
[340248710,1728917443442,-532.851938,0.00041246,120]
[340248711,1728917443457,-532.851938,0.00041246,120]
[340248712,1728917443473,-151.0,0.00041246,120]
[340248713,1728917443488,-336.003755,0.00041246,120]
[340248714,1728917443503,-336.003755,0.00041246,120]
[340248715,1728917443518,-151.0,0.00041246,120]
[340248716,1728917443535,-151.0,0.00041246,120]
[340248717,1728917443550,-56002.4191217,0.00041256,2]
[340248737,1728917444532,-922.39000908,0.00040965,2]
[340248738,1728917444545,-77.60999092,0.00040965,2]
[340248739,1728917444555,-500.0,0.00040997,31]
[340248740,1728917444565,-500.0,0.00040997,31]
[340248741,1728917444575,-500.0,0.00040997,31]
[340248742,1728917444585,-392.60551491,0.00040997,31]
[340248743,1728917444598,-107.39448509,0.00040997,31]
[340248744,1728917444610,-500.0,0.00040997,31]
[340248745,1728917444620,-500.0,0.00040997,31]
[340248747,1728917444630,-490.81892957,0.00040997,31]
[340248748,1728917444639,-500.0,0.00040997,31]
[340248750,1728917444648,-351.78095294,0.00040997,31]
[340248751,1728917444662,-148.21904706,0.00040997,31]
[340248752,1728917444671,-336.08492334,0.00040997,31]
[340248754,1728917444982,-163.91507666,0.00040997,31]
[340248755,1728917444992,-500.0,0.00040997,31]
[340248756,1728917445002,-500.0,0.00040997,31]
[340248757,1728917445012,-500.0,0.00040997,31]
[340248758,1728917445022,-500.0,0.00040997,31]
[340248759,1728917445032,-500.0,0.00040997,31]
[340248760,1728917445043,-500.0,0.00040997,31]
[340248761,1728917445053,-500.0,0.00040997,31]
[340248762,1728917445064,-500.0,0.00040997,31]
[340248763,1728917445075,-500.0,0.00040997,31]
[340248764,1728917445085,-500.0,0.00040997,31]
[340248765,1728917445095,-500.0,0.00040997,31]
[340248766,1728917445106,-500.0,0.00040997,31]
[340248767,1728917445116,-344.28844221,0.00040997,31]
[340248768,1728917445126,-927.44445447,0.00041045,10]
[340248769,1728917445139,-1392.91920597,0.00041045,10]
[340248770,1728917445151,-1367.4891411,0.00041045,10]
[340248771,1728917445165,-466.74000006,0.00041045,10]
[340248789,1728917446970,-1704.20433027,0.00041045,10]
[340248797,1728917669136,364.29,0.000265,2]
[340248799,1728917715070,-430.68,0.00027,2]
[340248803,1728917895555,-387.61,0.00027,2]
[340248804,1728917954118,170.434889,0.00023836,2]
[340248806,1728918082980,4728.0,0.00027,2]
[340248807,1728918089340,861.63782313,0.00025555,7]
[340248808,1728918124662,-300.0,0.00025554,2]
[340248809,1728918124684,-300.0,0.00025554,2]
[340248810,1728918124709,-9400.0,0.00025555,7]
[340248811,1728918141096,-10000.0,0.00025555,7]
[340248812,1728918153902,-61024.93584426,0.00025555,7]
[340248813,1728918153931,-500.0,0.000256,2]
[340248815,1728918205947,-300.0,0.00025553,2]
[340248816,1728918205970,-300.0,0.00025553,2]
[340248817,1728918205992,-500.0,0.00025554,2]
[340248818,1728918206012,-359.49832358,0.00025554,2]
[340248819,1728918206035,-500.0,0.00025554,2]
[340248820,1728918206056,-500.0,0.00025554,2]
[340248821,1728918206078,-500.0,0.00025554,2]
[340248822,1728918206101,-500.0,0.00025554,2]
[340248823,1728918206122,-469.71927868,0.00025554,2]
[340248824,1728918206144,-500.0,0.00025554,2]
[340248825,1728918206165,-500.0,0.00025554,2]
[340248826,1728918206187,-500.0,0.00025554,2]
[340248827,1728918206207,-500.0,0.00025554,2]
[340248829,1728918447372,170.434889,0.00023836,2]
[340248858,1728918632182,-165.452911,0.00026919,2]
[340248859,1728918632192,-348.85,0.00027,2]
[340248860,1728918632202,-3611.5634965,0.00027461,2]
[340248861,1728918632211,-3733.2946247,0.000299,2]
[340248862,1728918632221,-648.1,0.00029998,2]
[340248863,1728918632230,-300.0,0.00029999,2]
[340248864,1728918632240,-300.0,0.00029999,2]
[340248865,1728918632250,-11042.36791888,0.0003,9]
[340248871,1728918637902,-428.83314707,0.00029999,2]
[340248872,1728918637912,-500.0,0.00029999,2]
[340248873,1728918637923,-417.66685293,0.00029999,2]
[340248874,1728918637948,-82.33314707,0.00029999,2]
[340248875,1728918637958,-568.04852038,0.00029999,2]
[340248876,1728918637968,-500.0,0.00029999,2]
[340248877,1728918637978,-500.0,0.00029999,2]
[340248878,1728918637988,-500.0,0.00029999,2]
[340248879,1728918637997,-500.0,0.00029999,2]
[340248880,1728918638007,-290.12861101,0.00029999,2]
[340248881,1728918638016,-1725.96346913,0.0003,9]
[340248882,1728918638027,-3403.03179315,0.0003,9]
[340248928,1728918640079,-20230.90678655,0.0003,9]
[340248930,1728918640089,-1083.57076591,0.0003,7]
[340248933,1728918640099,-500.0,0.00031,2]
[340248935,1728918640110,-500.0,0.00032,30]
[340248937,1728918640119,-420.0,0.00032332,2]
[340248939,1728918640128,-389.50485156,0.00032877,2]
[340248941,1728918640140,-420.0,0.00032999,2]
[340248943,1728918640150,-3733.29462466,0.00033729,2]
[340248945,1728918640160,-587.0,0.00034847,2]
[340248947,1728918640173,-1111.0,0.00034849,120]
[340248949,1728918640184,-159.0,0.0003533,2]
[340248951,1728918640193,-1806.0,0.00035515,2]
[340248953,1728918640202,-500.36366789,0.000361,5]
[340248955,1728918640211,-302.7659733,0.00036822,2]
[340248956,1728918640223,-176.537489,0.00037034,2]
[340248957,1728918640233,-823.0,0.00037557,2]
[340248958,1728918640242,-3733.29462466,0.00037557,2]
[340248959,1728918640252,-853.51868553,0.00037878,64]
[340248960,1728918640263,-176.537489,0.00037999,2]
[340248961,1728918640272,-1806.0,0.00038515,2]
[340248962,1728918640283,-605.06788686,0.00038795,7]
[340248963,1728918640292,-176.537489,0.00038964,2]
[340248964,1728918640302,-1050.381,0.0003925,120]
[340248965,1728918640311,-1050.382,0.0003925,120]
[340248966,1728918640321,-1050.382,0.0003925,120]
[340248967,1728918640330,-1050.382,0.0003925,120]
[340248968,1728918640340,-1050.382,0.0003925,120]
[340248969,1728918640349,-170.0,0.0004,120]
[340248970,1728918640358,-2308.0,0.0004,120]
[340248971,1728918640367,-150.0,0.00040172,14]
[340248972,1728918640376,-150.0,0.00040172,14]
[340248973,1728918640386,-200.0,0.00040172,14]
[340248974,1728918640395,-357.18,0.00040172,120]
[340248975,1728918640405,-150.0,0.00040172,14]
[340248976,1728918640414,-154.39536861,0.00040208,34]
[340248977,1728918640425,-268.734,0.00040208,57]
[340248978,1728918640434,-202.757,0.00040208,57]
[340248979,1728918640443,-210.2404033,0.00040247,2]
[340248980,1728918640453,-313.5724539,0.00040247,2]
[340248981,1728918640464,-153.0,0.00040247,2]
[340248982,1728918640473,-155.0834983,0.00040247,2]
[340248983,1728918640482,-153.0,0.00040247,2]
[340248984,1728918640496,-301.731027,0.00040247,2]
[340248985,1728918640506,-210.2404033,0.00040247,2]
[340248986,1728918640516,-153.0,0.00040247,2]
[340248987,1728918640527,-210.2404033,0.00040247,2]
[340248988,1728918640536,-153.0,0.00040247,2]
[340248989,1728918640545,-414.0741816,0.00040247,2]
[340248990,1728918640555,-414.0741816,0.00040247,2]
[340248991,1728918640564,-153.0,0.00040247,2]
[340248992,1728918640573,-414.0741816,0.00040247,2]
[340248993,1728918640582,-153.0,0.00040247,2]
[340248994,1728918640591,-902.30573101,0.00040479,5]
[340249044,1728918643198,-249.69426899,0.00040479,5]
[340249046,1728918643210,-1111.0,0.00040767,21]
[340249048,1728918643221,-990.92000001,0.0004097,2]
[340249050,1728918643231,-390.71111391,0.00040995,2]
[340249052,1728918643241,-5000.0,0.00041,31]
[340249054,1728918643250,-8401.08,0.00041045,10]
[340249057,1728918643260,-682.06,0.00041045,3]
[340249059,1728918643270,-5286.65,0.00041055,10]
[340249062,1728918643280,-10081.29,0.00041055,10]
[340249064,1728918643290,-7000.9,0.00041055,10]
[340249066,1728918643301,-280.61467231,0.00041064,31]
[340249068,1728918643310,-238.18824557,0.00041064,31]
[340249070,1728918643320,-272.81032709,0.00041064,31]
[340249072,1728918643330,-56482.2341669,0.00041065,6]
[340249074,1728918643340,-156.16462084,0.00041068,120]
[340249076,1728918643350,-153.0,0.00041068,2]
[340249078,1728918643360,-414.0741816,0.00041068,2]
[340249080,1728918643370,-414.0741816,0.00041068,2]
[340249082,1728918643380,-153.0,0.00041068,2]
[340249084,1728918643391,-414.0741816,0.00041068,2]
[340249086,1728918643400,-153.0,0.00041068,2]
[340249088,1728918643410,-414.0741816,0.00041068,2]
[340249090,1728918643420,-267.8147802,0.00041068,2]
[340249092,1728918643429,-153.0,0.00041068,2]
[340249094,1728918643438,-56482.2341669,0.00041075,6]
[340249096,1728918643447,-2284.03178839,0.0004108,60]
[340249098,1728918643458,-790.0,0.00041084,120]
[340249100,1728918643467,-151.0,0.00041085,14]
[340249102,1728918643477,-225928.936667,0.00041085,6]
[340249104,1728918643487,-500.0,0.00041095,30]
[340249106,1728918643496,-500.0,0.00041095,30]
[340249108,1728918643506,-627.83469702,0.00041095,30]
[340249110,1728918643516,-500.0,0.00041095,30]
[340249112,1728918643525,-500.0,0.00041095,30]
[340249113,1728918643535,-497.20791972,0.00041095,30]
[340249115,1728918643545,-500.0,0.00041095,30]
[340249117,1728918643555,-500.0,0.00041095,30]
[340249119,1728918643565,-500.0,0.00041095,30]
[340249122,1728918643575,-500.0,0.00041095,30]
[340249124,1728918643585,-500.0,0.00041095,30]
[340249126,1728918643595,-500.37103668,0.00041095,30]
[340249127,1728918643605,-340.50980069,0.00041095,30]
[340249129,1728918643615,-298.3403095,0.00041095,30]
[340249131,1728918643624,-500.0,0.00041095,30]
[340249133,1728918643635,-500.0,0.00041095,30]
[340249135,1728918643645,-500.0,0.00041095,30]
[340249137,1728918643655,-500.0,0.00041095,30]
[340249140,1728918643665,-500.0,0.00041095,30]
[340249142,1728918643677,-500.0,0.00041095,30]
[340249144,1728918643686,-500.0,0.00041095,30]
[340249146,1728918643696,-604.97,0.00041095,30]
[340249148,1728918643706,-500.0,0.00041095,30]
[340249150,1728918643716,-500.0,0.00041095,30]
[340249152,1728918643725,-535.4235582,0.00041095,30]
[340249154,1728918643736,-500.0,0.00041095,30]
[340249156,1728918643748,-528.48758277,0.00041095,30]
[340249158,1728918643758,-500.0,0.00041095,30]
[340249160,1728918643768,-204.65179055,0.00041095,30]
[340249162,1728918643778,-152.71528111,0.00041095,30]
[340249164,1728918643787,-500.0,0.00041095,30]
[340249166,1728918643797,-500.0,0.00041095,30]
[340249168,1728918643807,-500.0,0.00041095,30]
[340249170,1728918643817,-500.0,0.00041095,30]
[340249172,1728918643827,-500.0,0.00041095,30]
[340249182,1728918643925,-518.77,0.00041095,30]
[340249184,1728918643937,-496.99952269,0.00041095,30]
[340249186,1728918643947,-500.0,0.00041095,30]
[340249189,1728918643957,-500.0,0.00041095,30]
[340249191,1728918643967,-500.0,0.00041095,30]
[340249193,1728918643977,-598.59,0.00041095,30]
[340249195,1728918643987,-500.0,0.00041095,30]
[340249197,1728918643997,-500.0,0.00041095,30]
[340249199,1728918644007,-578.23,0.00041095,30]
[340249201,1728918644018,-500.0,0.00041095,30]
[340249203,1728918644028,-500.0,0.00041095,30]
[340249205,1728918644038,-614.43929088,0.00041095,30]
[340249207,1728918644048,-500.0,0.00041095,30]
[340249209,1728918644063,-551.42799106,0.00041095,30]
[340249211,1728918644073,-500.0,0.00041095,30]
[340249213,1728918644082,-965.09,0.00041095,30]
[340249215,1728918644092,-500.0,0.00041095,30]
[340249217,1728918644103,-500.0,0.00041095,30]
[340249219,1728918644113,-320.56551636,0.00041095,30]
[340249221,1728918644123,-500.0,0.00041095,30]
[340249223,1728918644134,-500.0,0.00041095,30]
[340249225,1728918644144,-500.0,0.00041095,30]
[340249227,1728918644154,-500.0,0.00041095,30]
[340249229,1728918644163,-503.4120034,0.00041095,30]
[340249231,1728918644176,-509.38991906,0.00041095,30]
[340249233,1728918644185,-1000.0,0.00041095,30]
[340249235,1728918644195,-500.0,0.00041095,30]
[340249237,1728918644204,-500.0,0.00041095,30]